bitfinex-derivatives/quotes_BTCF0:USTF0_20250406
["timestamp","ask_amount","ask_price","bid_price","bid_amount"]
[1743973515958,0.3608,78933.0,78924.0,0.12276569]
[1743973516147,0.3608,78925.0,78912.0,0.409]
[1743973516353,0.3955,78924.0,78912.0,0.409]
[1743973516652,0.3608,78918.0,78912.0,0.409]
[1743973516854,0.3955,78917.0,78912.0,0.409]
[1743973517354,0.12671942,78916.0,78912.0,0.409]
[1743973517656,0.12671942,78916.0,78912.0,0.412]
[1743973517858,0.3955,78915.0,78912.0,0.412]
[1743973518060,0.3955,78915.0,78912.0,0.003]
[1743973518261,0.29694,78915.0,78912.0,0.002]
[1743973518561,0.12672102,78914.0,78886.0,0.409]
[1743973518760,0.12672102,78914.0,78900.0,0.23030298]
[1743973518761,0.3608,78907.0,78900.0,0.23030298]
[1743973518955,0.36224,78907.0,78901.0,0.1893]
[1743973519155,0.36224,78907.0,78901.0,0.3711]
[1743973519656,0.1857,78906.0,78901.0,0.3711]
[1743973520269,0.18714,78906.0,78901.0,0.3711]
[1743973521175,0.18714,78906.0,78901.0,0.3751]
[1743973521677,0.18714,78906.0,78901.0,0.30786569]
[1743973521867,0.18714,78906.0,78901.0,0.31186569]
[1743973522071,0.00144,78906.0,78904.0,0.3608]
[1743973522273,0.00019005,78908.0,78905.0,0.1988]
[1743973522470,0.00163005,78908.0,78905.0,0.1988]
[1743973522678,0.12673709,78907.0,78901.0,0.004]
[1743973522881,0.3608,78906.0,78901.0,0.004]
[1743973523271,0.19658969,78905.0,78904.0,0.001]
[1743973523477,0.46424678,78905.0,78904.0,0.001]
[1743973523978,0.46424678,78905.0,78901.0,0.004]
[1743973524177,0.46424678,78905.0,78898.0,0.1851]
[1743973524575,0.46424678,78905.0,78898.0,0.12186569]
[1743973524778,0.46524678,78905.0,78898.0,0.12186569]
[1743973525276,0.46424678,78905.0,78898.0,0.12186569]
[1743973525579,0.3608,78900.0,78888.0,0.1988]
[1743973525778,0.001,78905.0,78894.0,0.3608]
[1743973526081,0.00344,78905.0,78898.0,0.3608]
[1743973526383,0.13944,78916.0,78904.0,0.3608]
[1743973526572,0.13944,78928.0,78915.0,0.3608]
[1743973526774,0.14096,78928.0,78916.0,0.3852]
[1743973527073,0.1959,78927.0,78916.0,0.3852]
[1743973527673,0.1959,78927.0,78916.0,0.32196569]
[1743973527873,0.00144,78927.0,78917.0,0.409]
[1743973528076,0.003,78928.0,78922.0,0.3608]
[1743973528378,0.003,78928.0,78923.0,0.6017]
[1743973528681,0.13944,78939.0,78923.0,0.9625]
[1743973528873,0.13944,78939.0,78927.0,0.35712468]
[1743973529979,0.14916529,78939.0,78927.0,0.35712468]
[1743973530180,0.1873,78938.0,78927.0,0.35776468]
[1743973530383,0.1883,78938.0,78927.0,0.35776468]
[1743973530685,0.1883,78938.0,78927.0,0.29453037]
[1743973530984,0.1883,78938.0,78928.0,0.1819]
[1743973531188,0.1883,78938.0,78928.0,0.18298]
[1743973531678,0.1913,78938.0,78928.0,0.18298]
[1743973531983,0.1883,78938.0,78928.0,0.18298]
[1743973532182,0.1903,78938.0,78928.0,0.18298]
[1743973533186,0.003,78938.0,78930.0,0.3608]
[1743973533478,0.003,78938.0,78931.0,0.1864]
[1743973533479,0.006,78938.0,78931.0,0.1864]
[1743973533687,0.005,78938.0,78931.0,0.12388569]
[1743973533884,0.198,78937.0,78931.0,0.12388569]
[1743973534081,0.199,78937.0,78931.0,0.12388569]
[1743973534483,0.198,78937.0,78931.0,0.12388569]
[1743973534684,0.13932,78951.0,78932.0,0.409]
[1743973534988,0.3608,78963.0,78940.0,0.3608]
[1743973534989,0.198,78948.0,78940.0,0.3608]
[1743973535293,0.13932,78967.0,78947.0,0.3608]
[1743973535485,0.198,78966.0,78959.0,0.3608]
[1743973535682,0.198,78966.0,78960.0,0.1875]
[1743973535881,0.21066,78966.0,78960.0,0.1875]
[1743973536189,0.22002247,78966.0,78960.0,0.1875]
[1743973536492,0.3608,78961.0,78955.0,0.00019005]
[1743973536678,0.1822,78960.0,78947.0,0.34595574]
[1743973536879,0.1822,78960.0,78948.0,0.3608]
[1743973537082,0.3608,78954.0,78947.0,0.34595574]
[1743973537283,0.1822,78953.0,78947.0,0.34595574]
[1743973537676,0.1916,78952.0,78947.0,0.70675574]
[1743973537875,0.31825602,78952.0,78947.0,0.70675574]
[1743973538080,0.1822,78951.0,78947.0,0.70675574]
[1743973538493,0.1916,78950.0,78947.0,0.70675574]
[1743973538991,0.1822,78949.0,78947.0,0.70675574]
[1743973539177,0.1822,78949.0,78948.0,0.1805]
[1743973539383,0.1822,78949.0,78948.0,0.3446]
[1743973539792,0.1822,78949.0,78948.0,0.28136569]
[1743973539992,0.18292,78949.0,78948.0,0.28208569]
[1743973540489,0.00072,78949.0,78948.0,0.11798569]
[1743973540794,0.00372,78949.0,78948.0,0.11798569]
[1743973541180,0.00372,78949.0,78948.0,0.00072]
[1743973541395,0.13038485,78949.0,78948.0,0.00072]
[1743973541801,0.28038485,78949.0,78948.0,0.00072]
[1743973542296,0.28038485,78949.0,78942.0,0.00019005]
[1743973542597,0.1911,78948.0,78942.0,0.00083005]
[1743973542791,0.55282,78948.0,78937.0,0.29839574]
[1743973542993,0.55282,78948.0,78937.0,0.29911574]
[1743973543192,0.12666485,78947.0,78937.0,0.29911574]
[1743973543495,0.12782485,78947.0,78937.0,0.29911574]
[1743973543686,0.1994,78946.0,78937.0,0.29911574]
[1743973543887,0.20064001,78946.0,78937.0,0.29911574]
[1743973544196,0.13916,78945.0,78937.0,0.29911574]
[1743973544395,0.26695609,78945.0,78938.0,0.1991]
[1743973544601,0.14028001,78945.0,78938.0,0.36492]
[1743973544791,0.13916,78945.0,78938.0,0.36492]
[1743973544985,0.13916,78945.0,78944.0,0.3608]
[1743973545192,0.13916,78945.0,78938.0,0.1991]
[1743973545499,0.394,78944.0,78936.0,0.3608]
[1743973545792,0.52067608,78944.0,78936.0,0.29756569]
[1743973545997,0.52191609,78944.0,78936.0,0.29756569]
[1743973546699,0.3608,78939.0,78934.0,0.00019005]
[1743973546890,0.3793,78938.0,78934.0,0.00019005]
[1743973547392,0.1266849,78937.0,78934.0,0.00019005]
[1743973547799,0.3793,78936.0,78934.0,0.00019005]
[1743973548895,0.3793,78936.0,78932.0,0.13605574]
[1743973550004,0.08867,78942.0,78935.0,0.3608]
[1743973550202,0.1807,78941.0,78936.0,0.1647]
[1743973550404,0.1807,78941.0,78935.0,0.3608]
[1743973551404,0.1817,78941.0,78935.0,0.3608]
[1743973551997,0.1817,78941.0,78935.0,0.29756569]
[1743973552595,0.001,78941.0,78935.0,0.29756569]
[1743973552902,0.002,78941.0,78935.0,0.29756569]
[1743973553304,0.002,78941.0,78938.0,0.22571885]
[1743973553503,0.002,78941.0,78939.0,0.7076]
[1743973553700,0.001,78941.0,78939.0,0.7076]
[1743973554009,0.002,78941.0,78939.0,0.7076]
[1743973554203,0.001,78941.0,78939.0,0.7076]
[1743973554402,0.1943,78949.0,78939.0,0.8576]
[1743973554603,0.1943,78949.0,78947.0,0.3608]
[1743973554803,0.19542001,78949.0,78947.0,0.3608]
[1743973555005,0.19542001,78949.0,78948.0,0.10156569]
[1743973555708,0.19542001,78949.0,78947.0,0.3608]
[1743973556699,0.19742001,78949.0,78947.0,0.3608]
[1743973556898,0.19842001,78949.0,78947.0,0.3608]
[1743973557101,0.19642001,78949.0,78947.0,0.3608]
[1743973557300,0.19842001,78949.0,78947.0,0.3608]
[1743973557910,0.183,78948.0,78947.0,0.3608]
[1743973558211,0.67046565,78948.0,78946.0,0.30355146]
[1743973558411,0.1826,78947.0,78938.0,0.35089808]
[1743973558707,0.3608,78939.0,78938.0,0.2864895]
[1743973558898,0.36204001,78939.0,78938.0,0.2864895]
[1743973559102,0.36204001,78939.0,78938.0,0.1908695]
[1743973559615,0.4887209,78939.0,78938.0,0.1908695]
[1743973560002,0.4887209,78939.0,78938.0,0.1918695]
[1743973560312,0.14012001,78939.0,78938.0,0.1918695]
[1743973561007,0.14012001,78939.0,78938.0,0.12963519]
[1743973561208,0.14012001,78939.0,78938.0,0.002]
[1743973561417,0.00124001,78939.0,78938.0,0.001]
[1743973561714,0.00224001,78939.0,78938.0,0.001]
[1743973562010,0.00224001,78939.0,78935.0,0.185]
[1743973562213,0.001,78939.0,78938.0,0.3608]
[1743973562403,0.05066,78945.0,78938.0,0.70675574]
[1743973562607,0.05066,78945.0,78944.0,0.3608]
[1743973563205,0.05066,78945.0,78938.0,0.70675574]
[1743973563603,0.05166,78945.0,78938.0,0.70675574]
[1743973564003,0.08866,78951.0,78942.0,0.29756569]
[1743973564207,0.3608,78948.0,78944.0,0.001]
[1743973564406,0.13884,78947.0,78944.0,0.001]
[1743973564602,0.33294001,78947.0,78944.0,0.001]
[1743973564803,0.1829,78946.0,78938.0,0.34595574]
[1743973565008,0.3608,78939.0,78938.0,0.34695574]
[1743973565915,0.002,78946.0,78938.0,0.34695574]
[1743973566116,0.002,78946.0,78939.0,0.1981]
[1743973566414,0.1388,78976.0,78945.0,0.7216]
[1743973566606,0.1388,78976.0,78957.0,0.3608]
[1743973566808,0.1388,78976.0,78966.0,0.59227245]
[1743973567010,0.0522065,78977.0,78975.0,0.29756569]
[1743973567210,0.3608,79006.0,78976.0,0.5419]
[1743973567411,0.1984,79009.0,78990.0,0.59227245]
[1743973567613,0.00018992,78996.0,78991.0,0.52705574]
[1743973567912,0.1984,79009.0,78991.0,0.52705574]
[1743973567913,0.00951484,79007.0,78991.0,0.71275574]
[1743973568122,0.3608,79025.0,78997.0,0.23147245]
[1743973568313,0.41313442,79025.0,79015.0,0.23147245]
[1743973568515,0.1984,79038.0,79015.0,0.23147245]
[1743973568516,0.13876,79045.0,79024.0,0.3608]
[1743973568815,0.13876,79053.0,79038.0,0.3608]
[1743973569037,0.13876,79053.0,79050.0,0.3608]
[1743973569215,0.05292575,79056.0,79051.0,0.7276]
[1743973570324,0.05292575,79056.0,79051.0,1.16032143]
[1743973570514,0.03162,79058.0,79051.0,1.16032143]
[1743973570820,0.195,79081.0,79057.0,0.3608]
[1743973571123,0.195,79081.0,79073.0,0.27226]
[1743973571320,0.00961192,79089.0,79080.0,0.3608]
[1743973571617,0.3608,79088.0,79074.0,0.53555574]
[1743973571818,0.3608,79080.0,79074.0,0.34595574]
[1743973572020,0.3608,79076.0,79052.0,0.34595574]
[1743973572212,0.3608,79066.0,79052.0,0.34595574]
[1743973572418,0.003,79053.0,79052.0,0.34595574]
[1743973572921,0.003,79053.0,79052.0,0.34659574]
[1743973573122,0.3783,79065.0,79052.0,0.28336143]
[1743973573416,0.3608,79057.0,79052.0,0.28336143]
[1743973573624,0.3708,79056.0,79045.0,0.00018966]
[1743973573814,0.3608,79048.0,79045.0,0.00018966]
[1743973574011,0.3708,79047.0,79045.0,0.00018966]
[1743973574213,0.37144,79047.0,79045.0,0.00018966]
[1743973575509,0.12650861,79046.0,79033.0,0.3608]
[1743973575712,0.12714861,79046.0,79033.0,0.36144]
[1743973575913,0.3708,79045.0,79034.0,0.1866]
[1743973576215,0.37152,79045.0,79034.0,0.12408569]
[1743973576917,0.12651901,79044.0,79034.0,0.00072]
[1743973577122,0.3608,79035.0,79012.0,0.3608]
[1743973577324,0.3608,79023.0,79012.0,0.00064]
[1743973577527,0.1986,79034.0,79013.0,0.1953]
[1743973577528,0.13848,79026.0,79013.0,0.1953]
[1743973577817,0.0685,79034.0,79019.0,0.3608]
[1743973578021,0.00084,79023.0,79015.0,0.3608]
[1743973578213,0.00084,79023.0,79022.0,0.3608]
[1743973578413,0.32511981,79033.0,79022.0,0.3608]
[1743973579021,0.68591981,79033.0,79019.0,0.00018981]
[1743973579215,0.68591981,79033.0,79013.0,0.1322555]
[1743973580121,0.69543305,79033.0,79026.0,0.3608]
[1743973580316,0.1891,79032.0,79026.0,0.3608]
[1743973580717,0.1864,79031.0,79026.0,0.3608]
[1743973581017,0.3608,79030.0,79022.0,0.3608]
[1743973581224,0.67644543,79030.0,79013.0,0.005]
[1743973581417,0.1864,79029.0,79013.0,0.005]
[1743973581613,0.1384,79028.0,79013.0,0.005]
[1743973581819,0.3275,79028.0,79020.0,0.3608]
[1743973582020,0.1864,79027.0,79026.0,0.003]
[1743973582225,0.1864,79027.0,79020.0,0.30056569]
[1743973582421,0.1988,79026.0,79021.0,0.3789]
[1743973582924,0.1988,79026.0,79021.0,0.3608]
[1743973583125,0.00084,79026.0,79022.0,0.3789]
[1743973583428,0.003,79027.0,79022.0,0.37954]
[1743973583625,0.00262068,79027.0,79023.0,0.28272143]
[1743973583832,0.06868981,79034.0,79023.0,0.28336143]
[1743973584019,0.06868981,79034.0,79033.0,0.3608]
[1743973584215,0.06868981,79034.0,79033.0,0.36144]
[1743973584426,0.00018981,79034.0,79033.0,0.36144]
[1743973584826,0.00018981,79034.0,79033.0,0.00064]
[1743973585030,0.00018981,79034.0,79023.0,0.28272143]
[1743973585331,0.00218981,79034.0,79023.0,0.22012712]
[1743973585530,0.12652862,79033.0,79023.0,0.22012712]
[1743973585727,0.1862,79032.0,79023.0,0.22012712]
[1743973585928,0.18704,79032.0,79023.0,0.22012712]
[1743973586122,0.199,79031.0,79023.0,0.22012712]
[1743973586321,0.19992,79031.0,79023.0,0.22012712]
[1743973586530,0.1862,79030.0,79023.0,0.22012712]
[1743973586732,0.18704,79030.0,79023.0,0.22012712]
[1743973587027,0.199,79029.0,79023.0,0.22012712]
[1743973587230,0.19984,79029.0,79028.0,0.3608]
[1743973587427,0.19984,79029.0,79028.0,0.36148]
[1743973588123,0.20284,79029.0,79028.0,0.36148]
[1743973588319,0.00384,79029.0,79028.0,0.29824569]
[1743973588538,0.003,79029.0,79028.0,0.66773281]
[1743973588719,0.002,79029.0,79028.0,0.66773281]
[1743973588925,0.03163,79032.0,79028.0,0.66773281]
[1743973589123,0.03163,79032.0,79031.0,0.3608]
[1743973589328,0.1941,79056.0,79031.0,0.73092712]
[1743973589520,0.1969,79055.0,79047.0,0.3608]
[1743973589725,0.3608,79051.0,79047.0,0.00068]
[1743973589924,0.5577,79050.0,79033.0,0.3608]
[1743973590131,0.3608,79040.0,79033.0,0.3608]
[1743973590318,0.391,79039.0,79033.0,0.3608]
[1743973591335,0.391,79039.0,79033.0,0.29756569]
[1743973591632,0.3608,79034.0,79029.0,0.00018981]
[1743973591834,0.3835,79033.0,79029.0,0.00018981]
[1743973593828,0.3608,79032.0,79029.0,0.00018981]
[1743973594227,0.3835,79031.0,79029.0,0.00018981]
[1743973594432,0.3835,79031.0,79017.0,0.2977555]
[1743973595036,0.3835,79031.0,79010.0,0.71647279]
[1743973595037,0.3608,79021.0,79010.0,0.3608]
[1743973595225,0.3608,79011.0,79010.0,0.00092]
[1743973595430,0.00084,79011.0,79001.0,0.3873]
[1743973595633,0.1954,79010.0,79007.0,0.22012712]
[1743973595825,0.1813,79009.0,79007.0,0.22012712]
[1743973596029,0.18214,79009.0,79007.0,0.58092712]
[1743973596739,0.18214,79009.0,79007.0,0.58292712]
[1743973597326,0.18214,79009.0,79007.0,0.58492712]
[1743973597527,0.00084,79009.0,79007.0,0.67269281]
[1743973597725,0.00018981,79018.0,79008.0,0.39872495]
[1743973597941,0.00018981,79018.0,79017.0,0.34815]
[1743973598141,0.00018981,79018.0,79017.0,0.34879]
[1743973598537,0.1828,79035.0,79017.0,0.67286776]
[1743973598737,0.18368,79035.0,79032.0,0.3608]
[1743973599060,0.18368,79035.0,79032.0,0.00064]
[1743973599340,0.3608,79092.0,79043.0,0.3608]
[1743973599533,0.3608,79092.0,79081.0,0.3608]
[1743973599836,0.3608,79092.0,79081.0,0.36148]
[1743973599837,0.3646,79091.0,79081.0,0.36148]
[1743973600041,0.18356,79091.0,79081.0,0.55318]
[1743973600246,0.00076,79091.0,79081.0,0.55318]
[1743973600453,0.00018967,79094.0,79090.0,0.3608]
[1743973600632,0.00018967,79094.0,79093.0,0.3608]
[1743973600834,0.00018967,79094.0,79093.0,0.51705281]
[1743973601139,0.3608,79108.0,79093.0,0.51705281]
[1743973601447,0.1938,79107.0,79093.0,0.15625281]
[1743973601636,0.3874,79107.0,79093.0,0.15625281]
[1743973602245,0.3608,79102.0,79093.0,0.15625281]
[1743973602445,0.3874,79101.0,79093.0,0.15625281]
[1743973603046,0.3608,79094.0,79093.0,0.15625281]
[1743973603448,0.3874,79101.0,79093.0,0.15625281]
[1743973603650,0.3858,79099.0,79093.0,0.0930185]
[1743973603845,0.3608,79094.0,79093.0,0.0930185]
[1743973604256,0.3608,79094.0,79092.0,0.00018967]
[1743973604441,0.3858,79093.0,79092.0,0.00018967]
[1743973605148,0.38644,79093.0,79092.0,0.00018967]
[1743973605342,0.38644,79093.0,79092.0,0.00090967]
[1743973605647,0.00064,79093.0,79092.0,0.00090967]
[1743973605949,0.002,79094.0,79092.0,0.37100967]
[1743973606342,0.001,79093.0,79092.0,0.37100967]
[1743973606546,0.00018967,79108.0,79092.0,0.45777536]
[1743973606747,0.00018967,79108.0,79107.0,0.3608]
[1743973606946,0.00018967,79108.0,79107.0,0.36152]
[1743973607848,0.00218967,79108.0,79107.0,0.36152]
[1743973608350,0.00018967,79108.0,79107.0,0.36152]
[1743973608545,0.00018967,79108.0,79107.0,0.87232]
[1743973608740,0.0316,79112.0,79107.0,0.9653385]
[1743973608945,0.0316,79112.0,79107.0,0.8153385]
[1743973609154,0.0316,79112.0,79108.0,0.1823]
[1743973609452,0.0316,79112.0,79108.0,0.18294]
[1743973609655,0.0316,79112.0,79108.0,0.11970569]
[1743973609854,0.0316,79112.0,79109.0,0.1857]
[1743973610045,0.0316,79112.0,79109.0,0.18634]
[1743973610448,0.1815,79111.0,79109.0,0.18634]
[1743973610954,0.1815,79111.0,79109.0,0.00064]
[1743973611246,0.1895,79110.0,79109.0,0.00064]
[1743973611552,0.0008,79110.0,79109.0,0.00064]
[1743973611753,0.1815,79111.0,79109.0,0.00064]
[1743973611954,0.18238,79111.0,79109.0,0.00064]
[1743973612654,0.18238,79111.0,79107.0,0.75202419]
[1743973612857,0.18238,79111.0,79107.0,0.75278419]
[1743973613151,0.18338,79111.0,79107.0,0.75278419]
[1743973613340,0.18338,79111.0,79108.0,0.1887]
[1743973613543,0.18338,79111.0,79108.0,0.37822]
[1743973614657,0.18238,79111.0,79108.0,0.37822]
[1743973614860,0.18338,79111.0,79108.0,0.37822]
[1743973615156,0.00188,79111.0,79108.0,0.37822]
[1743973615347,0.001,79111.0,79108.0,0.37822]
[1743973615547,0.002,79111.0,79108.0,0.37822]
[1743973615747,0.002,79111.0,79108.0,0.31498569]
[1743973616643,0.001,79111.0,79108.0,0.31498569]
[1743973616847,0.1833,79110.0,79108.0,0.31498569]
[1743973617057,0.001,79111.0,79108.0,0.31498569]
[1743973617756,0.1865,79126.0,79108.0,0.31498569]
[1743973617953,0.1865,79126.0,79116.0,0.35567279]
[1743973618650,0.1865,79126.0,79117.0,0.3608]
[1743973618853,0.1865,79126.0,79117.0,0.48326569]
[1743973620058,0.00018967,79129.0,79124.0,0.3608]
[1743973620255,0.00018967,79129.0,79124.0,0.00068]
[1743973620256,0.3608,79125.0,79124.0,0.00068]
[1743973620446,0.5118,79125.0,79117.0,0.1857]
[1743973620759,0.3769,79124.0,79117.0,0.18660967]
[1743973621056,0.50431991,79124.0,79117.0,0.18660967]
[1743973621255,0.3608,79118.0,79117.0,0.18660967]
[1743973621454,0.3618,79118.0,79117.0,0.18660967]
[1743973621858,0.3618,79118.0,79117.0,0.00090967]
[1743973622159,0.63818949,79118.0,79108.0,0.35567279]
[1743973622355,0.3608,79109.0,79108.0,0.35639279]
[1743973622553,0.36204001,79109.0,79108.0,0.00072]
[1743973622753,0.36204001,79109.0,79099.0,0.35567279]
[1743973622962,0.189,79108.0,79099.0,0.71715279]
[1743973623164,0.22180001,79108.0,79099.0,0.35635279]
[1743973623363,0.03280001,79108.0,79099.0,0.35635279]
[1743973623565,0.189,79140.0,79107.0,0.7216]
[1743973623856,0.55064,79140.0,79130.0,0.35567279]
[1743973624051,0.67705665,79140.0,79130.0,0.35635279]
[1743973624752,0.67705665,79140.0,79130.0,0.00068]
[1743973624954,0.67705665,79140.0,79130.0,0.35635279]
[1743973625367,0.181,79139.0,79130.0,0.35635279]
[1743973625765,0.1821,79138.0,79130.0,0.35635279]
[1743973625961,0.30846633,79138.0,79130.0,0.35635279]
[1743973626162,0.181,79137.0,79130.0,0.35635279]
[1743973626664,0.1821,79136.0,79130.0,0.35635279]
[1743973626863,0.1821,79136.0,79130.0,0.00068]
[1743973627054,0.3608,79131.0,79127.0,0.00018967]
[1743973627255,0.3631,79130.0,79127.0,0.00018967]
[1743973627762,0.3631,79130.0,79127.0,0.36098967]
[1743973628061,0.3631,79130.0,79127.0,0.29775536]
[1743973628264,0.3608,79154.0,79129.0,0.3608]
[1743973628569,0.1815,79139.0,79130.0,0.35567279]
[1743973628757,0.1807,79138.0,79130.0,0.35567279]
[1743973629158,0.00018967,79143.0,79137.0,0.3608]
[1743973629666,0.00018967,79143.0,79138.0,0.1867]
[1743973630167,0.00110967,79143.0,79138.0,0.18762]
[1743973630668,0.00110967,79143.0,79139.0,0.01829743]
[1743973630866,0.1807,79142.0,79138.0,0.14260312]
[1743973631067,0.00116,79142.0,79138.0,0.14332312]
[1743973632170,0.1899,79141.0,79138.0,0.14332312]
[1743973632357,0.07098,79141.0,79138.0,0.00072]
[1743973632564,0.3608,79139.0,79138.0,0.00072]
[1743973632865,0.00116,79139.0,79129.0,0.71647279]
[1743973633060,0.3608,79137.0,79129.0,0.71711279]
[1743973633263,0.3608,79130.0,79129.0,0.00064]
[1743973633464,0.36192001,79130.0,79121.0,0.3608]
[1743973633669,0.1899,79129.0,79126.0,0.00086967]
[1743973633970,0.19118,79129.0,79121.0,0.29843536]
[1743973634169,0.19118,79129.0,79121.0,0.29907536]
[1743973634170,0.1899,79129.0,79121.0,0.29907536]
[1743973634769,0.1899,79129.0,79128.0,0.3608]
[1743973635663,0.5507,79129.0,79121.0,0.00018954]
[1743973636065,0.12637671,79128.0,79121.0,0.00018954]
[1743973636263,0.3608,79122.0,79121.0,0.00018954]
[1743973636463,0.00152,79122.0,79121.0,0.00018954]
[1743973636665,0.1886,79128.0,79121.0,0.00018954]
[1743973636861,0.19008,79128.0,79121.0,0.00018954]
[1743973637058,0.1805,79127.0,79118.0,0.29262802]
[1743973637262,0.3068831,79127.0,79118.0,0.29262802]
[1743973637463,0.5559,79126.0,79118.0,0.29262802]
[1743973637870,0.1882,79125.0,79118.0,0.29262802]
[1743973638368,0.1951,79124.0,79118.0,0.29262802]
[1743973638575,0.1951,79124.0,79113.0,0.3608]
[1743973638871,0.1882,79123.0,79113.0,0.3608]
[1743973639072,0.3608,79116.0,79110.0,0.22607544]
[1743973639372,0.1882,79115.0,79110.0,0.22607544]
[1743973639564,0.50968789,79115.0,79110.0,0.22607544]
[1743973639768,0.87048789,79115.0,79110.0,0.22607544]
[1743973640076,0.1836,79114.0,79110.0,0.16284113]
[1743973640371,0.1836,79114.0,79100.0,0.23045671]
[1743973640681,0.49300307,79113.0,79100.0,0.23045671]
[1743973641173,0.3608,79101.0,79095.0,0.16284113]
[1743973641361,0.3666,79100.0,79095.0,0.16284113]
[1743973641562,0.3666,79100.0,79090.0,0.29930764]
[1743973641764,0.3666,79100.0,79085.0,0.37435298]
[1743973641765,0.3608,79091.0,79085.0,0.37435298]
[1743973641971,0.1988,79090.0,79085.0,0.37435298]
[1743973642170,0.00152,79090.0,79085.0,0.37435298]
[1743973642364,0.13728,79100.0,79086.0,0.3753]
[1743973642564,0.13728,79100.0,79093.0,0.3608]
[1743973642975,0.13728,79100.0,79093.0,0.29756569]
[1743973643479,0.13728,79100.0,79094.0,0.1887]
[1743973643774,0.13728,79100.0,79093.0,0.29756569]
[1743973643963,0.13884001,79100.0,79086.0,0.3832]
[1743973644168,0.3608,79097.0,79085.0,0.37435298]
[1743973644367,0.36228,79097.0,79085.0,0.37435298]
[1743973644764,0.3608,79090.0,79085.0,0.37435298]
[1743973645074,0.184,79089.0,79085.0,0.37435298]
[1743973645376,0.3608,79088.0,79073.0,0.1887]
[1743973645886,0.3761,79087.0,79073.0,0.1887]
[1743973646071,0.50254303,79087.0,79073.0,0.12546569]
[1743973646378,0.50254303,79087.0,79069.0,0.3608]
[1743973646580,0.50254303,79087.0,79073.0,0.002]
[1743973646768,0.50254303,79087.0,79073.0,0.003]
[1743973646968,0.3608,79081.0,79073.0,0.003]
[1743973647170,0.3608,79074.0,79056.0,0.3608]
[1743973647378,0.3608,79067.0,79051.0,0.3608]
[1743973647582,0.3608,79055.0,79039.0,0.0930185]
[1743973647770,0.3608,79046.0,79034.0,0.3608]
[1743973647971,0.1372,79051.0,79034.0,0.3608]
[1743973648169,0.3807,79050.0,79034.0,0.3608]
[1743973648573,0.00018966,79058.0,79049.0,0.3608]
[1743973648772,0.00018966,79058.0,79057.0,0.3608]
[1743973649267,0.00018966,79058.0,79057.0,0.29756569]
[1743973649473,0.00170966,79058.0,79057.0,0.29756569]
[1743973649680,0.00170966,79058.0,79057.0,0.44756569]
[1743973649872,0.1836,79076.0,79057.0,0.44756569]
[1743973650072,0.1836,79076.0,79066.0,0.35546648]
[1743973650274,0.1831,79083.0,79067.0,0.381]
[1743973650475,0.1946,79082.0,79067.0,0.381]
[1743973650681,0.1946,79082.0,79070.0,0.35546648]
[1743973650982,0.1946,79082.0,79075.0,0.3608]
[1743973651168,0.1831,79081.0,79075.0,0.3608]
[1743973651568,0.3608,79076.0,79068.0,0.00018966]
[1743973651769,0.3608,79069.0,79068.0,0.00018966]
[1743973651981,0.36184001,79069.0,79068.0,0.00018966]
[1743973652175,0.005,85600.0,79068.0,0.00018966]
[1743973652176,0.00018966,79084.0,79068.0,0.15]
[1743973652379,0.00018966,79084.0,79075.0,0.3608]
[1743973652569,0.00018966,79084.0,79077.0,0.3608]
[1743973652774,0.3788,79108.0,79078.0,0.0930185]
[1743973652974,0.3788,79108.0,79089.0,0.35546648]
[1743973653280,0.00953887,79102.0,79098.0,0.3608]
[1743973653471,0.00953887,79102.0,79090.0,0.1908]
[1743973653670,0.002,79084.0,79080.0,0.35546648]
[1743973653875,0.002,79084.0,79082.0,0.3608]
[1743973654073,0.1938,79083.0,79080.0,0.35546648]
[1743973654384,0.1938,79083.0,79080.0,0.3608]
[1743973654584,0.185,79082.0,79080.0,0.3608]
[1743973654986,0.18572,79082.0,79080.0,0.36144]
[1743973655175,0.18572,79082.0,79080.0,0.29820569]
[1743973655375,0.1923,79081.0,79080.0,0.29756569]
[1743973655569,0.19302,79081.0,79080.0,0.29820569]
[1743973656080,0.00072,79081.0,79080.0,0.29820569]
[1743973656283,0.22224307,79123.0,79080.0,0.90202419]
[1743973656284,2.1,79100.0,79080.0,0.90202419]
[1743973656480,1.50377767,79100.0,79097.0,0.3608]
[1743973656678,1.50377767,79100.0,79098.0,0.1831]
[1743973656881,1.50377767,79100.0,79098.0,0.18394]
[1743973657081,0.3608,79099.0,79098.0,0.00084]
[1743973657278,0.38694,79099.0,79091.0,0.00018966]
[1743973657579,0.3608,79092.0,79091.0,0.00018966]
[1743973657881,0.36152,79092.0,79091.0,0.00018966]
[1743973658079,0.51152,79092.0,79080.0,0.3608]
[1743973658285,0.3863,79091.0,79080.0,0.29832569]
[1743973658581,0.3608,79082.0,79061.0,0.3608]
[1743973658782,0.3608,79075.0,79061.0,0.36144]
[1743973659095,0.3751,79074.0,79061.0,0.36144]
[1743973659274,0.3608,79068.0,79061.0,0.36144]
[1743973659479,0.3751,79067.0,79061.0,0.36144]
[1743973659785,0.3759,79067.0,79061.0,0.36144]
[1743973660086,0.12647901,79066.0,79061.0,0.36144]
[1743973660475,0.13708,79071.0,79062.0,0.1961]
[1743973660687,0.04313165,79081.0,79070.0,0.3608]
[1743973661184,0.04313165,79081.0,79071.0,0.13286569]
[1743973661371,0.13704,79092.0,79072.0,0.0930185]
[1743973661575,0.13704,79092.0,79088.0,0.3608]
[1743973661775,0.1938,79093.0,79088.0,0.3608]
[1743973661973,1.50313767,79100.0,79089.0,0.3608]
[1743973662179,1.51242332,79100.0,79089.0,0.3608]
[1743973662385,1.51242332,79100.0,79085.0,0.3608]
[1743973662386,0.3608,79092.0,79082.0,0.35546648]
[1743973662585,0.3782,79091.0,79087.0,0.00018966]
[1743973663987,0.003,79091.0,79089.0,0.3608]
[1743973664287,0.003,79091.0,79089.0,0.29756569]